lending/lending_fUSD_20240621
["ID","MTS","AMOUNT","RATE_DAILY","PERIOD"]
[330092281,1718989938801,-2137.42,0.00027123,4]
[330092282,1718989938811,-573.05,0.00027123,4]
[330092283,1718989938820,-3053.94,0.00027123,4]
[330092284,1718989938829,-639.37,0.00027123,4]
[330092285,1718989938839,-2243.82,0.00027123,4]
[330092286,1718989938850,-682.46,0.00027123,4]
[330092287,1718989938859,-1600.73,0.00027123,4]
[330092288,1718989938868,-696.06,0.00027123,4]
[330092289,1718989938878,-1542.7,0.00027123,4]
[330092290,1718989938888,-1105.98,0.00027123,4]
[330092291,1718989938897,-1549.93,0.00027123,4]
[330092292,1718989938906,-2659.75,0.00027123,4]
[330092293,1718989938916,-833.57,0.00027123,4]
[330092294,1718989938926,-1158.3,0.00027123,4]
[330092295,1718989938936,-533.64,0.00027123,4]
[330092296,1718989938946,-833.78,0.00027123,4]
[330092297,1718989938956,-685.86,0.00027123,4]
[330092298,1718989938966,-1090.97,0.00027123,4]
[330092299,1718989938975,-599.47,0.00027123,4]
[330092300,1718989938985,-1289.2,0.00027123,4]
[330092301,1718989938995,-2819.08,0.00027123,4]
[330092302,1718989939005,-591.52,0.00027123,4]
[330092303,1718989939015,-7009.44,0.00027123,4]
[330092304,1718989939025,-1505.93,0.00027123,4]
[330092305,1718989939034,-824.93,0.00027123,4]
[330092306,1718989939044,-500.0,0.00027123,4]
[330092307,1718989939054,-3331.02,0.00027123,4]
[330092308,1718989939068,-1405.37,0.00027123,4]
[330092309,1718989939078,-5922.66,0.00027123,4]
[330092310,1718989939087,-905.75,0.00027123,4]
[330092311,1718989939097,-6608.91,0.00027123,4]
[330092312,1718989939108,-580.05,0.00027123,4]
[330092313,1718989939123,-540.71,0.00027123,4]
[330092314,1718989939133,-838.13,0.00027123,4]
[330092315,1718989939142,-234.7552647,0.00027123,4]
[330092316,1718989939153,-823.35,0.00027123,4]
[330092317,1718989939163,-535.25,0.00027123,4]
[330092318,1718989939172,-887.04,0.00027123,4]
[330092319,1718989939182,-1378.35,0.00027123,4]
[330092320,1718989939193,-500.0,0.00027123,4]
[330092321,1718989939203,-500.0,0.00027123,4]
[330092322,1718989939212,-1812.66,0.00027123,4]
[330092323,1718989939221,-647.36,0.00027123,4]
[330092324,1718989939231,-1256.45,0.00027123,4]
[330092325,1718989939241,-772.11,0.00027123,4]
[330092326,1718989939252,-939.73,0.00027123,4]
[330092327,1718989939261,-1304.96,0.00027123,4]
[330092328,1718989939270,-1184.79,0.00027123,4]
[330092329,1718989939280,-1482.67,0.00027123,4]
[330092330,1718989939290,-1172.14,0.00027123,4]
[330092331,1718989939300,-1060.14,0.00027123,4]
[330092332,1718989939310,-3886.53,0.00027123,4]
[330092333,1718989939319,-654.99,0.00027123,4]
[330092334,1718989939328,-1021.14,0.00027123,4]
[330092335,1718989939338,-25963.77,0.00027123,4]
[330092336,1718989939347,-1656.59,0.00027123,4]
[330092337,1718989939358,-1438.15,0.00027123,4]
[330092338,1718989939367,-500.0,0.00027123,4]
[330092339,1718989939377,-1558.07,0.00027123,4]
[330092340,1718989939386,-500.0,0.00027123,4]
[330092341,1718989939397,-1206.43,0.00027123,4]
[330092342,1718989939406,-1774.24,0.00027123,4]
[330092343,1718989939415,-1123.84,0.00027123,4]
[330092344,1718989939425,-1807.53,0.00027123,4]
[330092345,1718989939434,-1718.78,0.00027123,4]
[330092346,1718989939444,-736.5,0.00027123,4]
[330092347,1718989939453,-3462.68,0.00027123,2]
[330092348,1718989939463,-5000.0,0.00027186,2]
[330092349,1718989939472,-5000.0,0.00027187,2]
[330092350,1718989939482,-500.0,0.00027188,2]
[330092351,1718989939491,-369.0,0.00027189,2]
[330092352,1718989939501,-369.0,0.00027189,2]
[330092353,1718989939511,-1968.77,0.00027222,2]
[330092354,1718989939520,-611.31,0.00027264,2]
[330092355,1718989939530,-5000.0,0.0002727,2]
[330092356,1718989939540,-2857.96594911,0.00027284,2]
[330092357,1718989939549,-2857.96594897,0.00027284,2]
[330092358,1718989939559,-2832.61,0.00027288,2]
[330092359,1718989939569,-150.0,0.00027341,120]
[330092360,1718989939579,-11693.45,0.0002737,2]
[330092361,1718989939589,-1356.86,0.00027373,4]
[330092362,1718989939599,-3062.37,0.00027373,4]
[330092363,1718989939608,-1533.09,0.00027373,4]
[330092364,1718989939618,-5990.91,0.00027373,4]
[330092365,1718989939628,-1110.17,0.00027373,4]
[330092366,1718989939637,-11925.19,0.00027373,4]
[330092367,1718989939647,-3672.46,0.00027373,4]
[330092368,1718989939657,-6178.73,0.00027373,4]
[330092369,1718989939667,-1501.96,0.00027373,4]
[330092370,1718989939678,-3518.52,0.00027373,4]
[330092371,1718989939688,-1989.12,0.00027385,4]
[330092372,1718989939698,-2398.6,0.00027385,4]
[330092373,1718989939708,-42723.34,0.00027385,4]
[330092374,1718989939717,-1860.96,0.00027385,4]
[330092375,1718989939727,-7757.24,0.00027385,4]
[330092376,1718989939738,-2969.44,0.00027385,4]
[330092377,1718989939748,-599.30249228,0.00027385,2]
[330092378,1718989939759,-2619.5,0.00027385,4]
[330092379,1718989939768,-4343.94,0.00027385,4]
[330092380,1718989939778,-946.76,0.00027385,4]
[330092381,1718989939787,-1067.33,0.00027385,4]
[330092382,1718989939798,-11069.13,0.00027385,4]
[330092383,1718989939808,-2041.56,0.00027385,4]
[330092384,1718989939817,-871.25,0.00027386,4]
[330092385,1718989939828,-2040.63,0.00027386,4]
[330092386,1718989939838,-1063.28,0.00027386,4]
[330092387,1718989939847,-2566.45,0.00027386,4]
[330092388,1718989939858,-1747.85,0.00027386,4]
[330092389,1718989939868,-574.66,0.00027386,4]
[330092390,1718989939878,-1705.93,0.00027386,4]
[330092391,1718989939889,-790.72,0.00027386,4]
[330092392,1718989939900,-614.11,0.00027386,4]
[330092393,1718989939910,-1508.15,0.00027386,4]
[330092394,1718989939920,-655.33,0.00027386,4]
[330092395,1718989939930,-900.76,0.00027386,4]
[330092396,1718989939940,-1711.8,0.00027386,4]
[330092397,1718989939950,-500.0,0.00027386,4]
[330092399,1718989939960,-500.0,0.00027386,4]
[330092400,1718989939970,-1259.32,0.00027386,4]
[330092401,1718989939979,-543.58,0.00027386,4]
[330092402,1718989939989,-1395.51,0.00027386,4]
[330092403,1718989939999,-500.0,0.00027386,4]
[330092404,1718989940009,-779.08,0.00027386,4]
[330092405,1718989940019,-882.56,0.00027386,4]
[330092406,1718989940030,-1115.61,0.00027386,4]
[330092407,1718989940040,-500.0,0.00027386,4]
[330092408,1718989940050,-1759.77,0.00027386,4]
[330092409,1718989940061,-562.58,0.00027386,4]
[330092410,1718989940070,-1118.22,0.00027386,4]
[330092411,1718989940080,-1073.61,0.00027386,4]
[330092412,1718989940090,-1028.37,0.00027386,4]
[330092413,1718989940100,-565.65,0.00027386,4]
[330092414,1718989940110,-1694.42,0.00027386,4]
[330092415,1718989940121,-538.43,0.00027386,4]
[330092416,1718989940131,-1124.0,0.00027386,4]
[330092417,1718989940141,-1310.65,0.00027386,4]
[330092418,1718989940151,-445.25660522,0.00027386,4]
[330092419,1718989940160,-1974.58,0.00027386,4]
[330092420,1718989940170,-1456.87,0.00027386,4]
[330092421,1718989940179,-1560.47,0.00027386,4]
[330092422,1718989940188,-1350.6,0.00027386,4]
[330092423,1718989940199,-766.53,0.00027386,4]
[330092424,1718989940208,-209.58,0.00027386,4]
[330092425,1718989940218,-1457.49,0.00027386,4]
[330092426,1718989940228,-1549.35,0.00027386,4]
[330092427,1718989940237,-1276.6,0.00027386,4]
[330092428,1718989940247,-661.51,0.00027386,4]
[330092429,1718989940256,-616.1,0.00027386,4]
[330092430,1718989940266,-759.07,0.00027386,4]
[330092431,1718989940276,-1007.76,0.00027386,4]
[330092432,1718989940287,-558.75,0.00027386,4]
[330092433,1718989940297,-520.63,0.00027386,4]
[330092434,1718989940307,-500.0,0.00027386,4]
[330092435,1718989940317,-500.0,0.00027386,4]
[330092436,1718989940327,-750.4,0.00027386,4]
[330092437,1718989940337,-500.0,0.00027386,4]
[330092438,1718989940346,-500.0,0.00027386,4]
[330092439,1718989940357,-674.53,0.00027386,4]
[330092440,1718989940367,-919.98,0.00027386,4]
[330092441,1718989940377,-1723.58,0.00027386,4]
[330092442,1718989940388,-500.0,0.00027386,4]
[330092443,1718989940400,-572.44,0.00027386,4]
[330092444,1718989940410,-966.63,0.00027386,4]
[330092445,1718989940420,-277.55594853,0.00027386,4]
[330092446,1718989940429,-574.64,0.00027386,4]
[330092447,1718989940439,-551.74,0.00027386,4]
[330092448,1718989940448,-500.0,0.00027386,4]
[330092449,1718989940460,-853.88,0.00027386,4]
[330092450,1718989940478,-2295.96,0.00027386,5]
[330092451,1718989940487,-769.31,0.00027386,4]
[330092452,1718989940496,-584.18,0.00027386,4]
[330092453,1718989940506,-754.91,0.00027386,4]
[330092454,1718989940517,-500.0,0.00027386,4]
[330092455,1718989940526,-920.79,0.00027386,4]
[330092456,1718989940536,-2478.71,0.00027386,4]
[330092457,1718989940546,-843.52,0.00027386,4]
[330092458,1718989940557,-667.94,0.00027386,4]
[330092459,1718989940567,-878.77,0.00027386,4]
[330092460,1718989940576,-1915.42,0.00027386,4]
[330092461,1718989940585,-1207.42,0.00027386,4]
[330092462,1718989940595,-500.0,0.00027386,4]
[330092463,1718989940605,-944.02,0.00027386,4]
[330092464,1718989940614,-1304.29,0.00027386,4]
[330092465,1718989940624,-500.0,0.00027386,4]
[330092466,1718989940636,-729.79,0.00027386,4]
[330092467,1718989940646,-1256.24,0.00027386,4]
[330092468,1718989940655,-656.57,0.00027386,4]
[330092469,1718989940664,-1422.04,0.00027386,4]
[330092470,1718989940674,-1852.92,0.00027386,4]
[330092471,1718989940683,-625.57,0.00027386,4]
[330092472,1718989940692,-666.91,0.00027386,4]
[330092473,1718989940702,-1499.6,0.00027386,4]
[330092474,1718989940711,-2424.04,0.00027386,4]
[330092475,1718989940721,-765.5,0.00027386,4]
[330092476,1718989940731,-4987.88,0.00027386,4]
[330092477,1718989940740,-2211.22,0.00027386,4]
[330092478,1718989940750,-915.87,0.00027386,4]
[330092479,1718989940759,-787.23,0.00027386,4]
[330092480,1718989940768,-637.63,0.00027386,4]
[330092481,1718989940778,-1221.9,0.00027386,4]
[330092482,1718989940787,-1018.75,0.00027386,4]
[330092483,1718989940797,-501.59,0.00027386,4]
[330092484,1718989940806,-500.0,0.00027386,4]
[330092485,1718989940815,-869.8,0.00027386,4]
[330092486,1718989940824,-500.0,0.00027386,8]
[330092487,1718989940834,-748.62,0.00027386,4]
[330092488,1718989940844,-2336.91,0.00027386,4]
[330092489,1718989940853,-1361.85,0.00027386,4]
[330092490,1718989940863,-1018.85,0.00027386,4]
[330092491,1718989940872,-16289.33,0.00027386,4]
[330092492,1718989940881,-2349.59,0.00027386,4]
[330092493,1718989940891,-650.0,0.00027386,4]
[330092494,1718989940900,-500.0,0.00027386,4]
[330092495,1718989940910,-979.16,0.00027386,4]
[330092496,1718989940919,-772.03,0.00027386,4]
[330092497,1718989940928,-1085.42,0.00027386,4]
[330092498,1718989940937,-581.94,0.00027386,4]
[330092499,1718989940946,-1856.06,0.00027386,4]
[330092500,1718989940955,-1071.94,0.00027386,4]
[330092501,1718989940965,-676.76,0.00027386,4]
[330092502,1718989940974,-1530.22,0.00027386,4]
[330092503,1718989940984,-500.0,0.00027386,4]
[330092504,1718989940993,-364.44,0.00027386,4]
[330092505,1718989941003,-1352.93,0.00027386,4]
[330092506,1718989941012,-828.24,0.00027386,4]
[330092507,1718989941022,-758.24,0.00027386,4]
[330092508,1718989941032,-1938.16,0.00027386,4]
[330092509,1718989941041,-556.62,0.00027386,4]
[330092510,1718989941051,-2348.18,0.00027386,4]
[330092511,1718989941060,-2261.53,0.00027386,4]
[330092512,1718989941072,-600.2,0.00027386,4]
[330092513,1718989941089,-200.0,0.00027386,7]
[330092514,1718989941104,-1091.2,0.00027386,4]
[330092515,1718989941120,-1100.71,0.00027386,4]
[330092516,1718989941134,-12938.97,0.00027386,4]
[330092517,1718989941148,-1965.19,0.00027386,4]
[330092518,1718989941163,-638.92,0.00027386,4]
[330092519,1718989941177,-635.23,0.00027386,4]
[330092520,1718989941193,-1762.14,0.00027386,4]
[330092521,1718989941208,-1859.99,0.00027386,4]
[330092522,1718989941221,-992.0,0.00027386,4]
[330092523,1718989941234,-656.75,0.00027386,4]
[330092524,1718989941247,-2222.41,0.00027386,4]
[330092525,1718989941262,-860.86,0.00027386,4]
[330092526,1718989941276,-1049.63,0.00027386,4]
[330092527,1718989941287,-672.47,0.00027386,4]
[330092528,1718989941300,-500.0,0.00027386,4]
[330092529,1718989941312,-3375.56,0.00027386,4]
[330092530,1718989941326,-2480.67,0.00027386,4]
[330092531,1718989941339,-652.86,0.00027386,4]
[330092532,1718989941355,-2569.55,0.00027386,4]
[330092533,1718989941370,-377.26650536,0.0002739,15]
[330092534,1718989941382,-584.68294308,0.0002739,20]
[330092535,1718989941392,-292.34147154,0.0002739,25]
[330092536,1718989941404,-292.34147154,0.0002739,30]
[330092537,1718989941418,-500.0,0.00027396,4]
[330092538,1718989941432,-1833.6,0.00027396,4]
[330092539,1718989941443,-1662.17,0.00027396,4]
[330092540,1718989941456,-1196.01,0.00027396,4]
[330092541,1718989941484,-1323.04,0.00027396,4]
[330092542,1718989941497,-1815.14,0.00027396,4]
[330092543,1718989941510,-1488.18,0.00027396,4]
[330092544,1718989941522,-657.08,0.00027396,4]
[330092545,1718989941534,-794.21,0.00027396,4]
[330092546,1718989941546,-2173.9,0.00027396,4]
[330092547,1718989941560,-1700.13,0.00027396,4]
[330092548,1718989941571,-703.12,0.00027396,4]
[330092549,1718989941582,-1792.19,0.00027396,4]
[330092550,1718989941598,-645.07,0.00027396,4]
[330092551,1718989941610,-500.0,0.00027396,4]
[330092552,1718989941622,-831.31,0.00027396,4]
[330092553,1718989941635,-1274.46,0.00027396,4]
[330092554,1718989941648,-500.0,0.00027396,4]
[330092555,1718989941660,-1390.32,0.00027396,4]
[330092556,1718989941672,-2085.31,0.00027396,4]
[330092557,1718989941685,-2038.36,0.00027396,4]
[330092558,1718989941697,-500.0,0.00027396,4]
[330092559,1718989941709,-961.12,0.00027396,4]
[330092560,1718989941722,-875.07,0.00027396,4]
[330092561,1718989941733,-727.93,0.00027396,4]
[330092562,1718989941745,-1432.85,0.00027396,4]
[330092563,1718989941757,-1981.72,0.00027396,4]
[330092564,1718989941769,-500.0,0.00027396,4]
[330092565,1718989941781,-1176.2,0.00027396,4]
[330092566,1718989941793,-500.0,0.00027396,4]
[330092567,1718989941805,-1836.11,0.00027396,4]
[330092568,1718989941818,-1666.62,0.00027396,4]
[330092569,1718989941829,-1088.29,0.00027396,4]
[330092570,1718989941842,-500.0,0.00027396,4]
[330092571,1718989941854,-1712.42,0.00027396,4]
[330092572,1718989941865,-864.04,0.00027396,4]
[330092573,1718989941877,-1441.44,0.00027396,4]
[330092574,1718989941889,-500.0,0.00027396,4]
[330092575,1718989941900,-664.38,0.00027396,4]
[330092576,1718989941913,-914.89,0.00027396,4]
[330092577,1718989941925,-1656.03,0.00027396,4]
[330092578,1718989941937,-2699.53,0.00027396,4]
[330092579,1718989941948,-1310.25,0.00027396,4]
[330092580,1718989941960,-4009.92,0.00027396,4]
[330092581,1718989941990,-1193.59,0.00027396,4]
[330092582,1718989942002,-191.19161377,0.00027397,3]
[330092583,1718989942014,-500.0,0.00027397,4]
[330092584,1718989942026,-710.94,0.00027397,4]
[330092585,1718989942038,-500.0,0.00027397,4]
[330092586,1718989942050,-797.24,0.00027397,4]
[330092587,1718989942061,-617.5,0.00027397,4]
[330092588,1718989942074,-475.08954188,0.00027397,4]
[330092589,1718989942085,-798.04,0.00027397,4]
[330092590,1718989942097,-735.75,0.00027397,4]
[330092591,1718989942109,-419.62736771,0.00027397,4]
[330092592,1718989942122,-754.93,0.00027397,4]
[330092593,1718989942134,-595.79,0.00027397,4]
[330092594,1718989942146,-738.1,0.00027397,4]
[330092595,1718989942159,-1205.55,0.00027397,4]
[330092596,1718989942171,-500.0,0.00027397,4]
[330092597,1718989942182,-522.35,0.00027397,4]
[330092598,1718989942194,-985.93,0.00027397,4]
[330092599,1718989942209,-668.33,0.00027397,4]
[330092600,1718989942221,-548.21,0.00027397,4]
[330092601,1718989942233,-679.56,0.00027397,4]
[330092602,1718989942245,-500.0,0.00027397,4]
[330092603,1718989942257,-780.77,0.00027397,4]
[330092604,1718989942269,-582.75,0.00027397,4]
[330092605,1718989942281,-584.71,0.00027397,4]
[330092606,1718989942293,-563.5,0.00027397,4]
[330092607,1718989942305,-1042.2,0.00027397,4]
[330092608,1718989942316,-588.19,0.00027397,4]
[330092609,1718989942329,-687.44,0.00027397,4]
[330092610,1718989942341,-811.36,0.00027397,4]
[330092611,1718989942352,-717.66,0.00027397,4]
[330092612,1718989942364,-621.56,0.00027397,4]
[330092613,1718989942376,-531.24,0.00027397,4]
[330092614,1718989942387,-150.0,0.00027397,30]
[330092615,1718989942399,-1201.37,0.00027397,4]
[330092616,1718989942409,-2000.0,0.00027397,2]
[330092617,1718989942420,-2000.0,0.00027397,2]
[330092618,1718989942432,-2000.0,0.00027397,2]
[330092619,1718989942443,-2000.0,0.00027397,2]
[330092620,1718989942455,-1616.85204737,0.00027397,2]
[330092621,1718989942467,-522.9,0.00027397,4]
[330092622,1718989942492,-742.2,0.00027397,4]
[330092623,1718989942503,-1192.22,0.00027397,4]
[330092624,1718989942515,-460.06447852,0.00027397,4]
[330092625,1718989942526,-938.16,0.00027397,4]
[330092626,1718989942538,-1372.38,0.00027397,4]
[330092627,1718989942549,-500.0,0.00027397,4]
[330092628,1718989942561,-624.64,0.00027397,4]
[330092629,1718989942572,-1457.99,0.00027397,4]
[330092630,1718989942582,-511.55,0.00027397,4]
[330092631,1718989942594,-595.44,0.00027397,4]
[330092632,1718989942604,-963.23,0.00027397,4]
[330092633,1718989942615,-759.23,0.00027397,4]
[330092634,1718989942626,-1020.76,0.00027397,4]
[330092635,1718989942637,-1064.78,0.00027397,4]
[330092636,1718989942648,-873.22,0.00027397,4]
[330092637,1718989942659,-733.93,0.00027397,4]
[330092638,1718989942670,-2686.69,0.00027397,4]
[330092639,1718989942682,-1011.28,0.00027397,4]
[330092640,1718989942693,-852.94,0.00027397,4]
[330092641,1718989942707,-554.48,0.00027397,4]
[330092642,1718989942719,-427.91022529,0.00027397,4]
[330092643,1718989942742,-768.74,0.00027397,4]
[330092644,1718989942754,-1467.03,0.00027397,4]
[330092645,1718989942765,-1066.65,0.00027397,4]
[330092646,1718989942777,-500.0,0.00027397,4]
[330092647,1718989942789,-735.92,0.00027397,4]
[330092648,1718989942801,-150.0,0.00027397,4]
[330092649,1718989942813,-150.0,0.00027397,4]
[330092650,1718989942825,-150.0,0.00027397,4]
[330092651,1718989942837,-150.0,0.00027397,4]
[330092652,1718989942849,-150.0,0.00027397,4]
[330092653,1718989942861,-150.0,0.00027397,4]
[330092654,1718989942872,-150.0,0.00027397,4]
[330092655,1718989942885,-189.33706469,0.00027397,4]
[330092656,1718989942896,-899.57,0.00027397,4]
[330092657,1718989942909,-1342.26,0.00027397,4]
[330092658,1718989942922,-585.36,0.00027397,4]
[330092659,1718989942935,-509.69,0.00027397,4]
[330092660,1718989942947,-667.28,0.00027397,4]
[330092661,1718989942959,-229.17705578,0.00027397,4]
[330092662,1718989942971,-2179.3,0.00027397,4]
[330092663,1718989942996,-906.35,0.00027397,4]
[330092664,1718989943007,-858.28,0.00027397,4]
[330092665,1718989943018,-559.84,0.00027397,4]
[330092666,1718989943030,-1415.8,0.00027397,4]
[330092667,1718989943041,-1930.31,0.00027397,4]
[330092668,1718989943053,-1505.14,0.00027397,4]
[330092669,1718989943065,-859.86,0.00027397,4]
[330092670,1718989943078,-642.24,0.00027397,4]
[330092671,1718989943090,-1397.1,0.00027397,4]
[330092672,1718989943103,-602.59,0.00027397,4]
[330092673,1718989943123,-570.91,0.00027397,4]
[330092674,1718989943136,-669.19,0.00027397,4]
[330092675,1718989943149,-1901.91,0.00027397,4]
[330092676,1718989943165,-1273.57,0.00027397,4]
[330092677,1718989943178,-431.30218265,0.00027397,4]
[330092678,1718989943190,-963.28,0.00027397,4]
[330092679,1718989943206,-532.82,0.00027397,4]
[330092680,1718989943219,-2148.29,0.00027397,4]
[330092681,1718989943238,-904.13,0.00027397,4]
[330092682,1718989943250,-1923.19,0.00027397,4]
[330092683,1718989943262,-1655.82,0.00027397,4]
[330092684,1718989943273,-590.93,0.00027397,4]
[330092685,1718989943285,-511.56,0.00027397,4]
[330092686,1718989943296,-1612.01,0.00027397,4]
[330092687,1718989943308,-2137.42,0.00027397,4]
[330092688,1718989943320,-573.05,0.00027397,4]
[330092689,1718989943332,-3053.94,0.00027397,4]
[330092690,1718989943345,-639.37,0.00027397,4]
[330092691,1718989943357,-2243.82,0.00027397,4]
[330092692,1718989943370,-682.46,0.00027397,4]
[330092693,1718989943381,-1600.73,0.00027397,4]
[330092694,1718989943395,-696.06,0.00027397,4]
[330092695,1718989943408,-1542.7,0.00027397,4]
[330092696,1718989943420,-1105.98,0.00027397,4]
[330092697,1718989943433,-2659.75,0.00027397,4]
[330092698,1718989943447,-833.57,0.00027397,4]
[330092699,1718989943459,-1549.93,0.00027397,4]
[330092700,1718989943471,-1158.3,0.00027397,4]
[330092701,1718989943489,-533.64,0.00027397,4]
[330092702,1718989943502,-833.78,0.00027397,4]
[330092703,1718989943514,-685.86,0.00027397,4]
[330092704,1718989943526,-1090.97,0.00027397,4]
[330092705,1718989943538,-599.47,0.00027397,4]
[330092706,1718989943550,-1289.2,0.00027397,4]
[330092707,1718989943562,-2819.08,0.00027397,4]
[330092708,1718989943574,-591.52,0.00027397,4]
[330092709,1718989943587,-7009.44,0.00027397,4]
[330092710,1718989943599,-1505.93,0.00027397,4]
[330092711,1718989943611,-824.93,0.00027397,4]
[330092712,1718989943623,-500.0,0.00027397,4]
[330092713,1718989943636,-3331.02,0.00027397,4]
[330092714,1718989943648,-1405.37,0.00027397,4]
[330092715,1718989943660,-5922.66,0.00027397,4]
[330092716,1718989943672,-905.75,0.00027397,4]
[330092717,1718989943684,-6608.91,0.00027397,4]
[330092718,1718989943696,-580.05,0.00027397,4]
[330092719,1718989943708,-19704.08,0.00027397,8]
[330092720,1718989943721,-540.71,0.00027397,4]
[330092721,1718989943742,-838.13,0.00027397,4]
[330092722,1718989943754,-823.35,0.00027397,4]
[330092723,1718989943766,-535.25,0.00027397,4]
[330092724,1718989943777,-887.04,0.00027397,4]
[330092725,1718989943789,-1378.35,0.00027397,4]
[330092726,1718989943800,-500.0,0.00027397,4]
[330092727,1718989943812,-153.15,0.00027397,4]
[330092728,1718989943823,-1812.66,0.00027397,4]
[330092729,1718989943835,-647.36,0.00027397,4]
[330092730,1718989943847,-1256.45,0.00027397,4]
[330092731,1718989943859,-772.11,0.00027397,4]
[330092732,1718989943871,-939.73,0.00027397,4]
[330092733,1718989943882,-1304.96,0.00027397,4]
[330092734,1718989943894,-1184.79,0.00027397,4]
[330092735,1718989943905,-1482.67,0.00027397,4]
[330092736,1718989943918,-1172.14,0.00027397,4]
[330092737,1718989943930,-1060.14,0.00027397,4]
[330092738,1718989943941,-3886.53,0.00027397,4]
[330092739,1718989943953,-654.99,0.00027397,4]
[330092740,1718989943964,-1021.14,0.00027397,4]
[330092741,1718989943978,-25963.77,0.00027397,4]
[330092742,1718989943990,-1656.59,0.00027397,4]
[330092743,1718989944002,-1438.15,0.00027397,4]
[330092744,1718989944014,-500.0,0.00027397,4]
[330092745,1718989944027,-1558.07,0.00027397,4]
[330092746,1718989944039,-500.0,0.00027397,4]
[330092747,1718989944051,-1206.43,0.00027397,4]
[330092748,1718989944063,-1774.24,0.00027397,4]
[330092749,1718989944075,-1123.84,0.00027397,4]
[330092750,1718989944087,-1807.53,0.00027397,4]
[330092751,1718989944100,-1718.78,0.00027397,4]
[330092752,1718989944114,-536.27224311,0.00027397,2]
[330092753,1718989944126,-536.27224311,0.00027397,2]
[330092754,1718989944138,-536.27224311,0.00027397,2]
[330092755,1718989944149,-536.27224311,0.00027397,2]
[330092756,1718989944163,-536.27224311,0.00027397,2]
[330092757,1718989944175,-536.27224311,0.00027397,2]
[330092758,1718989944186,-536.27224311,0.00027397,2]
[330092759,1718989944202,-536.27224311,0.00027397,2]
[330092760,1718989944215,-536.27224311,0.00027397,2]
[330092761,1718989944231,-536.27224311,0.00027397,2]
[330092762,1718989944243,-536.27224311,0.00027397,2]
[330092763,1718989944255,-536.27224311,0.00027397,2]
[330092764,1718989944267,-536.27224311,0.00027397,2]
[330092765,1718989944279,-536.27224311,0.00027397,2]
[330092766,1718989944291,-536.27224311,0.00027397,2]
[330092767,1718989944303,-536.27224311,0.00027397,2]
[330092768,1718989944314,-536.27224311,0.00027397,2]
[330092769,1718989944326,-536.27224311,0.00027397,2]
[330092770,1718989944337,-536.27224311,0.00027397,2]
[330092771,1718989944350,-536.27224311,0.00027397,2]
[330092772,1718989944362,-536.27224311,0.00027397,2]
[330092773,1718989944374,-536.27224311,0.00027397,2]
[330092774,1718989944385,-536.27224311,0.00027397,2]
[330092775,1718989944398,-536.27224311,0.00027397,2]
[330092776,1718989944410,-536.27224311,0.00027397,2]
[330092777,1718989944421,-536.27224311,0.00027397,2]
[330092778,1718989944433,-536.27224311,0.00027397,2]
[330092779,1718989944444,-536.27224311,0.00027397,2]
[330092780,1718989944456,-536.27224311,0.00027397,2]
[330092781,1718989944468,-536.27224311,0.00027397,2]